lending/lending_fUSD_20240130
["ID","MTS","AMOUNT","RATE_DAILY","PERIOD"]
[313002662,1706584248990,-500.0,0.00049999,120]
[313002663,1706584249000,-500.0,0.00049999,120]
[313002664,1706584249010,-500.0,0.00049999,120]
[313002665,1706584249019,-500.0,0.00049999,120]
[313002666,1706584249029,-500.0,0.00049999,120]
[313002667,1706584249038,-500.0,0.00049999,120]
[313002668,1706584249048,-500.0,0.00049999,120]
[313002669,1706584249057,-184.98638594,0.00049999,120]
[313002670,1706584249067,-500.0,0.00049999,120]
[313002671,1706584249076,-500.0,0.00049999,120]
[313002672,1706584249086,-500.0,0.00049999,120]
[313002673,1706584249096,-500.0,0.00049999,120]
[313002674,1706584249105,-500.0,0.00049999,120]
[313002675,1706584249114,-500.0,0.00049999,120]
[313002676,1706584249124,-500.0,0.00049999,120]
[313002677,1706584249133,-500.0,0.00049999,120]
[313002678,1706584249142,-500.0,0.00049999,120]
[313002679,1706584249151,-500.0,0.00049999,120]
[313002680,1706584249161,-448.80726586,0.00049999,120]
[313002681,1706584249172,-500.0,0.00049999,120]
[313002682,1706584249181,-500.0,0.00049999,120]
[313002683,1706584249191,-500.0,0.00049999,120]
[313002684,1706584249200,-364.34587708,0.00049999,120]
[313002685,1706584249210,-500.0,0.00049999,120]
[313002686,1706584249220,-200.0,0.00049999,120]
[313002687,1706584249230,-2154.65182416,0.0005,4]
[313002688,1706584249239,-864.88861439,0.0005,2]
[313002689,1706584249248,-28928.88093057,0.0005,30]
[313002690,1706584249257,-7864.35272421,0.0005,4]
[313002691,1706584249267,-359.89930562,0.0005,120]
[313002692,1706584249276,-2803.86892119,0.0005,10]
[313002693,1706584249286,-300.0,0.0005,42]
[313002694,1706584249295,-500.0,0.0005,6]
[313002695,1706584249304,-201305.22388038,0.0005,60]
[313002696,1706584249313,-249.80811335,0.0005,4]
[313002697,1706584249322,-173.95567052,0.0005,90]
[313002698,1706584249331,-1520.537964,0.0005,30]
[313002699,1706584249341,-318.70092462,0.0005,30]
[313002700,1706584249350,-2500.0,0.0005,120]
[313002701,1706584249359,-500.0,0.0005,120]
[313002702,1706584249369,-8311.57539973,0.0005,30]
[313002703,1706584249378,-10005.43309576,0.0005,2]
[313002704,1706584249388,-153.57,0.0005,7]
[313002705,1706584249397,-43554.0,0.0005,120]
[313002706,1706584249405,-1895.0,0.0005,60]
[313002707,1706584249415,-2017.0,0.0005,30]
[313002708,1706584249424,-5946.58050499,0.0005,30]
[313002709,1706584249433,-202.31656515,0.0005,14]
[313002710,1706584249442,-157.76672526,0.0005,120]
[313002711,1706584249452,-47937.90913106,0.0005,30]
[313002712,1706584249461,-3723.0,0.0005,30]
[313002713,1706584249470,-155.0,0.0005,120]
[313002714,1706584249479,-500.0,0.0005,14]
[313002715,1706584249488,-503.53,0.0005,14]
[313002716,1706584249498,-441.99,0.0005,120]
[313002717,1706584249507,-287.27,0.0005,120]
[313002718,1706584249516,-582.16256646,0.0005,30]
[313002719,1706584249525,-24094.0,0.0005,12]
[313002720,1706584249533,-666.0,0.0005,2]
[313002721,1706584249543,-165.0,0.0005,30]
[313002722,1706584249554,-1679.0,0.0005,30]
[313002723,1706584249563,-150.0,0.00050005,30]
[313002724,1706584249572,-500.0,0.00050044,30]
[313002725,1706584249581,-500.0,0.00050044,30]
[313002726,1706584249590,-500.3911992,0.00050067,60]
[313002727,1706584249599,-150.0,0.0005009,30]
[313002728,1706584249608,-150.0,0.0005009,30]
[313002729,1706584249617,-151.013,0.00050098,58]
[313002730,1706584249628,-738.99345243,0.0005015,46]
[313002731,1706584249638,-150.0,0.00050158,30]
[313002732,1706584249647,-150.0,0.00050175,30]
[313002733,1706584249656,-151.013,0.00050198,58]
[313002734,1706584249664,-150.0,0.00050204,30]
[313002735,1706584249679,-150.0,0.00050234,120]
[313002736,1706584249694,-150.0,0.00050234,120]
[313002737,1706584249708,-150.0,0.00050234,120]
[313002738,1706584249721,-150.0,0.00050234,2]
[313002739,1706584249732,-150.0,0.00050234,2]
[313002740,1706584249744,-150.0,0.00050234,120]
[313002741,1706584249757,-150.0,0.00050234,120]
[313002742,1706584249770,-150.0,0.00050236,30]
[313002743,1706584249783,-150.0,0.00050261,30]
[313002744,1706584249797,-500.0,0.00050274,14]
[313002745,1706584249809,-345.013,0.00050298,59]
[313002746,1706584249821,-209.0,0.00050316,38]
[313002747,1706584249831,-500.0,0.00050317,30]
[313002748,1706584249843,-947.12,0.00050317,30]
[313002749,1706584249855,-150.0,0.00050346,30]
[313002750,1706584249868,-345.013,0.00050398,59]
[313002751,1706584249880,-1000.0,0.000504,2]
[313002752,1706584249892,-373.94,0.00050411,30]
[313002753,1706584249905,-174.65,0.00050421,2]
[313002754,1706584249918,-1531.18165264,0.00050426,14]
[313002755,1706584249928,-150.0,0.00050431,30]
[313002756,1706584249940,-150.0,0.00050431,30]
[313002757,1706584249955,-150.0,0.00050431,30]
[313002758,1706584249966,-150.0,0.00050431,30]
[313002759,1706584249980,-152.58347099,0.00050467,46]
[313002760,1706584249991,-1428.10392785,0.00050485,7]
[313002761,1706584250003,-345.013,0.00050498,60]
[313002762,1706584250016,-1000.0,0.000505,30]
[313002763,1706584250029,-1000.0,0.000505,30]
[313002764,1706584250042,-1000.0,0.000505,30]
[313002765,1706584250057,-1000.0,0.000505,30]
[313002766,1706584250070,-1000.0,0.000505,30]
[313002767,1706584250084,-1000.0,0.000505,30]
[313002768,1706584250097,-1000.0,0.000505,30]
[313002769,1706584250108,-843.99,0.000505,30]
[313002770,1706584250119,-150.0,0.00050516,30]
[313002771,1706584250129,-1246.0,0.0005056,120]
[313002772,1706584250139,-500.0,0.0005059,30]
[313002773,1706584250152,-167.013,0.00050598,60]
[313002774,1706584250163,-150.0,0.00050601,30]
[313002775,1706584250175,-150.0,0.00050626,30]
[313002776,1706584250187,-150.0,0.00050626,30]
[313002777,1706584250198,-150.0,0.00050626,30]
[313002778,1706584250210,-150.0,0.00050658,30]
[313002779,1706584250221,-150.5,0.00050668,120]
[313002780,1706584250231,-150.5,0.0005067,120]
[313002781,1706584250242,-150.5,0.0005067,14]
[313002782,1706584250252,-150.5,0.00050678,120]
[313002783,1706584250263,-150.5,0.00050678,120]
[313002784,1706584250274,-150.5,0.0005068,120]
[313002785,1706584250285,-150.5,0.0005068,14]
[313002786,1706584250297,-604.0,0.0005068,7]
[313002787,1706584250308,-150.0,0.00050687,30]
[313002788,1706584250319,-150.5,0.0005069,120]
[313002789,1706584250330,-150.5,0.0005069,14]
[313002790,1706584250341,-151.013,0.00050698,60]
[313002791,1706584250354,-202.732987,0.000507,30]
[313002792,1706584250365,-150.0,0.00050704,30]
[313002793,1706584250376,-500.0,0.00050747,14]
[313002794,1706584250387,-155.19,0.0005077,14]
[313002795,1706584250398,-150.0,0.00050772,30]
[313002796,1706584250409,-150.0,0.00050772,30]
[313002797,1706584250420,-150.5,0.0005078,14]
[313002798,1706584250432,-150.5,0.0005079,14]
[313002799,1706584250442,-151.013,0.00050798,60]
[313002800,1706584250453,-759.17661947,0.00050816,30]
[313002801,1706584250464,-150.0,0.00050829,2]
[313002802,1706584250475,-150.0,0.00050857,30]
[313002803,1706584250486,-500.0,0.00050863,30]
[313002804,1706584250497,-524.0,0.0005087,120]
[313002805,1706584250508,-349.0,0.0005087,120]
[313002806,1706584250520,-524.0,0.0005088,120]
[313002807,1706584250535,-349.0,0.0005088,120]
[313002808,1706584250546,-150.0,0.00050885,30]
[313002809,1706584250557,-4420.2462111,0.00050888,2]
[313002810,1706584250570,-567.19274263,0.00050888,2]
[313002811,1706584250580,-757.32689692,0.00050888,120]
[313002812,1706584250591,-265.64,0.0005089,120]
[313002813,1706584250602,-173.59,0.0005089,120]
[313002814,1706584250613,-221.46,0.0005089,120]
[313002815,1706584250625,-524.0,0.0005089,120]
[313002816,1706584250637,-349.0,0.0005089,120]
[313002817,1706584250649,-324.0,0.0005089,2]
[313002818,1706584250660,-189.0,0.0005089,2]
[313002819,1706584250671,-151.013,0.00050898,60]
[313002820,1706584250684,-2022.85087638,0.000509,27]
[313002821,1706584250694,-785.442468,0.000509,33]
[313002822,1706584250705,-458.31718877,0.000509,14]
[313002823,1706584250717,-738.99345243,0.000509,48]
[313002824,1706584250728,-150.0,0.00050942,30]
[313002825,1706584250740,-7107.53630412,0.00050949,3]
[313002826,1706584250751,-352.65466395,0.0005095,3]
[313002827,1706584250762,-7611.55960259,0.00050953,3]
[313002828,1706584250773,-243.15446308,0.00050955,3]
[313002829,1706584250784,-243.15446308,0.00050955,3]
[313002830,1706584250795,-2781.06469987,0.00050956,4]
[313002831,1706584250806,-247.14293788,0.00050956,4]
[313002832,1706584250817,-150.0,0.00050956,10]
[313002833,1706584250828,-150.0,0.00050956,10]
[313002834,1706584250838,-629.04989027,0.00050957,4]
[313002835,1706584250849,-309.79200206,0.00050957,4]
[313002836,1706584250860,-371.8763272,0.00050957,4]
[313002837,1706584250871,-523.73846155,0.00050957,4]
[313002838,1706584250882,-7107.53630412,0.00050957,3]
[313002839,1706584250894,-42563.27571303,0.00050957,3]
[313002840,1706584250905,-8181.65232685,0.00050959,3]
[313002841,1706584250926,-4878.95218186,0.00050959,3]
[313002842,1706584250937,-1821.17,0.00050959,5]
[313002843,1706584250948,-151.0,0.00050959,14]
[313002844,1706584250959,-151.0,0.00050959,14]
[313002845,1706584250971,-796.47258531,0.0005096,3]
[313002846,1706584250982,-214.53376657,0.0005096,3]
[313002847,1706584250993,-33989.29309138,0.00050961,3]
[313002848,1706584750217,309.73722913,0.00022999,2]
[313002849,1706585251116,-1000.0,0.00029999,4]
[313002850,1706585251136,-1588.19716392,0.0003,4]
[313002851,1706585251159,-155.0,0.00032797,2]
[313002852,1706585251181,-150.0,0.00032798,2]
[313002853,1706585251204,-5742.01347419,0.00032799,2]
[313002857,1706585369110,-34361.409,0.00032797,4]
[313002858,1706585373115,-10575.57290814,0.00032797,4]
[313002859,1706585373135,-4743.73405085,0.00032798,4]
[313002860,1706585373155,-11929.86437634,0.00032799,2]
[313002876,1706585431520,-183.82637996,0.00032635,2]
[313002877,1706585431530,-500.0,0.00032797,2]
[313002878,1706585431539,-854.96159668,0.00032799,2]
[313002879,1706585431577,-635.21695715,0.00032799,2]
[313002880,1706585431587,-636.15843273,0.00034,4]
[313002881,1706585431596,-160.54906015,0.00036,2]
[313002882,1706585431606,-155.01,0.000361,3]
[313002883,1706585431615,-155.01,0.000361,3]
[313002884,1706585431627,-155.01,0.000361,3]
[313002885,1706585431637,-155.01,0.000361,3]
[313002886,1706585431646,-155.01,0.000361,3]
[313002887,1706585431657,-155.01,0.000361,3]
[313002888,1706585431666,-155.01,0.000361,3]
[313002889,1706585431675,-155.01,0.000361,3]
[313002890,1706585431685,-1432.18317414,0.00039,2]
[313002891,1706585431694,-282.70130916,0.00039999,2]
[313002892,1706585431703,-570.51160774,0.0004,4]
[313002893,1706585431713,-713.38117008,0.0004,30]
[313002894,1706585431722,-499.99,0.00040371,2]
[313002895,1706585431731,-5666.16389831,0.00040373,19]
[313002896,1706585431741,-1252.51685528,0.00040373,2]
[313002897,1706585431751,-807.43092845,0.00040373,16]
[313002898,1706585431761,-155.01,0.000407,4]
[313002899,1706585431770,-155.01,0.000407,4]
[313002900,1706585431780,-155.01,0.000407,4]
[313002901,1706585431790,-155.01,0.000407,4]
[313002902,1706585431799,-155.01,0.000407,4]
[313002903,1706585431809,-155.01,0.000407,4]
[313002904,1706585431818,-155.01,0.000407,4]
[313002905,1706585431828,-155.01,0.000407,4]
[313002906,1706585431838,-251.43,0.00041567,2]
[313002907,1706585431848,-1000.0,0.00041953,2]
[313002908,1706585431857,-0.29498601,0.00041954,7]
[313002909,1706585431881,-1705.67271399,0.00041954,7]
[313002910,1706585431892,-524.40095148,0.00041954,30]
[313002911,1706585431901,-1220.79407061,0.00041954,120]
[313002912,1706585431911,-150.0,0.00041954,30]
[313002913,1706585431920,-306.794346,0.00041954,30]
[313002914,1706585431929,-200.0,0.00042,2]
[313002915,1706585431939,-150.0,0.00042503,2]
[313002916,1706585431949,-250.0,0.00042597,2]
[313002917,1706585431959,-623.27,0.0004264,2]
[313002918,1706585431969,-207.46246545,0.00042662,4]
[313002919,1706585431978,-894.0,0.0004269,2]
[313002920,1706585431988,-250.0,0.00042716,2]
[313002921,1706585431998,-23900.0,0.00042731,2]
[313002922,1706585432008,-150.0,0.00042851,2]
[313002923,1706585432018,-1000.0,0.00043,2]
[313002924,1706585432028,-494.59,0.00043342,2]
[313002925,1706585432038,-2000.0,0.00043408,120]
[313002926,1706585432051,-155.0,0.00043442,2]
[313002927,1706585432060,-250.0,0.00043443,111]
[313002928,1706585432071,-317.68,0.00043537,120]
[313002929,1706585432080,-1000.0,0.00043538,2]
[313002930,1706585432090,-150.0,0.00043638,2]
[313002931,1706585432099,-251.43,0.00043831,2]
[313002932,1706585432109,-339.22,0.00043836,15]
[313002933,1706585432119,-204.30521314,0.000441,2]
[313002934,1706585432131,-666.83,0.00044494,120]
[313002935,1706585432144,-150.0,0.00044773,2]
[313002936,1706585432154,-198.44,0.00044987,2]
[313002937,1706585432166,-253.11560498,0.00045,4]
[313002938,1706585432175,-165.59736572,0.00045,2]
[313002939,1706585432185,-560.0,0.00045,2]
[313002940,1706585432195,-155.01,0.000452,5]
[313002941,1706585432205,-155.01,0.000452,5]
[313002942,1706585432215,-155.01,0.000452,5]
[313002943,1706585432225,-155.01,0.000452,5]
[313002944,1706585432235,-155.01,0.000452,5]
[313002945,1706585432246,-155.01,0.000452,5]
[313002946,1706585432256,-155.01,0.000452,5]
[313002947,1706585432266,-155.01,0.000452,5]
[313002948,1706585432275,-174.68,0.00045346,2]
[313002949,1706585432284,-1000.0,0.000458,2]
[313002950,1706585432293,-150.0,0.00045909,2]
[313002951,1706585432302,-251.43,0.00046095,2]
[313002952,1706585432311,-150.0,0.00047044,2]
[313002953,1706585432322,-180.0,0.00047138,2]
[313002954,1706585432331,-14767.32384197,0.00047419,4]
[313002955,1706585432340,-1830.76,0.00047537,5]
[313002956,1706585432350,-339.22,0.00047572,15]
[313002957,1706585432362,-762.0,0.0004769,2]
[313002958,1706585432372,-256.55,0.00047785,10]
[313002959,1706585432382,-1067.54071718,0.0004779,2]
[313002960,1706585432415,-2867.05041199,0.0004779,2]
[313002966,1706585437585,-369.54297793,0.00043399,2]
[313002967,1706585437598,-6420.88416689,0.00043399,2]
[313002968,1706585437699,-17109.57285518,0.00043399,2]
[313002969,1706585437708,-151.57815645,0.00047,30]
[313002970,1706585437718,-14917.40887083,0.0004779,2]
[313002971,1706585437728,-535.0,0.0004779,2]
[313002972,1706585437738,-10332.6762,0.00047795,2]
[313002973,1706585437747,-443.558,0.000478,3]
[313002974,1706585437757,-7529.9048,0.000478,2]
[313002975,1706585437767,-1192.403,0.000478,2]
[313002976,1706585437777,-1168.4008,0.000478,2]
[313002977,1706585437786,-526.7526,0.000478,2]
[313002978,1706585437795,-220.60927995,0.000478,9]
[313002979,1706585437805,-206.27904587,0.000478,25]
[313002980,1706585437815,-158.38046568,0.00047892,2]
[313002981,1706585437825,-113342.62355463,0.00047895,2]
[313002982,1706585437854,-460637.48963731,0.00047895,2]
[313002983,1706585437867,-380.21994964,0.00047895,2]
[313002984,1706585437887,-17559.96923057,0.00047895,2]
[313003012,1706585438304,-44176.39167633,0.00047895,2]
[313003195,1706585440168,-312.52609998,0.00047895,2]
[313003241,1706585440945,-6119.44966833,0.00047895,2]
[313003242,1706585440958,-3583.30575191,0.00047895,2]
[313003243,1706585441002,-265.42310059,0.00047895,2]
[313003244,1706585441066,-60844.01546709,0.00047895,2]
[313003248,1706585443214,-1413.01804533,0.00047895,2]
[313003249,1706585443391,-2432.71553829,0.00047895,2]
[313003250,1706585443403,-331.8681131,0.00047895,2]
[313003251,1706585443415,-465.15169898,0.00047895,2]
[313003252,1706585443437,-0.01246949,0.00047895,2]
[313003253,1706585443456,-3953.97741952,0.00047895,2]
[313003254,1706585443510,-1886.9656,0.00047895,2]
[313003255,1706585443523,-1456.20448539,0.00047895,2]
[313003256,1706585443569,-1024.93389214,0.00047895,2]
[313003257,1706585443581,-261.17800002,0.00047895,2]
[313003264,1706585445608,-512.67,0.00047895,2]
[313003265,1706585445773,-8920.99368119,0.00047895,2]
[313003266,1706585445783,-3198.6849817,0.00047897,2]
[313003267,1706585445793,-713.38117008,0.00047897,30]
[313003268,1706585445803,-158.38046568,0.00047897,2]
[313003269,1706585445813,-472.06192616,0.00047898,10]
[313003270,1706585445822,-1838.16433142,0.00047898,4]
[313003271,1706585445832,-903.2114498,0.00047898,4]
[313003272,1706585445841,-666.0,0.00047898,2]
[313003273,1706585445851,-25801.34941928,0.00047899,2]
[313003274,1706585445864,-1412.77682081,0.00047899,2]
[313003275,1706585445890,-785.08231578,0.00047899,2]
[313003276,1706585445902,-422.7434007,0.00047899,2]
[313003279,1706586347401,-153.80142424,0.00025,3]
[313003280,1706586545225,-495.94273594,0.00024995,2]
[313003281,1706586545245,-155.0,0.00024996,2]
[313003282,1706586545266,-150.0,0.00024999,2]
[313003283,1706586545286,-150.0,0.00024999,2]
[313003284,1706586545307,-396.19857576,0.00025,3]
[313003285,1706586545327,-362.00852423,0.00025,2]
[313003286,1706586545347,-260.75269255,0.00025,2]
[313003287,1706586545367,-212.64845647,0.00025,2]
[313003288,1706586545387,-176.96979157,0.00025,2]
[313003289,1706586545410,-500.0,0.00025,2]
[313003290,1706586545430,-155.0,0.00025,2]
[313003291,1706586545450,-40.97862348,0.00025,2]
[313003292,1706586548104,-242.48475818,0.00025,2]
[313003293,1706586548124,-155.0,0.00025,2]
[313003294,1706586548143,-284.9333869,0.00025,2]
[313003295,1706586548165,-267.35311566,0.00025,2]
[313003296,1706586548183,-267.35311566,0.00025,2]
[313003297,1706586548204,-286.45,0.00027397,2]
[313003298,1706586548224,-155.0,0.00031686,2]
[313003299,1706586548243,-389.75433827,0.00031687,2]
[313003300,1706586567090,-156.47869543,0.00025,2]
[313003301,1706586567110,-362.00852423,0.00025,2]
[313003302,1706586567130,-284.9333869,0.00025,2]
[313003303,1706586567151,-106.4486486,0.00025,2]
[313003304,1706586571113,-160.90446706,0.00025,2]
[313003305,1706586571136,-260.75269255,0.00025,2]
[313003306,1706586571158,-283.46338166,0.00025,2]
[313003307,1706586571180,-64.91945873,0.00025,2]
[313003308,1706586574088,-90.84433869,0.00025,2]
[313003309,1706586574109,-5.24566173,0.00031687,2]
[313003310,1706586574132,-1398.964605,0.000346,2]
[313003312,1706586631825,-160.97570296,0.00025,2]
[313003313,1706586631835,-744.54341232,0.000346,2]
[313003314,1706586631847,-195.49198268,0.000346,2]
[313003315,1706586631857,-438.46604211,0.000346,4]
[313003316,1706586631868,-150.0,0.000346,2]
[313003317,1706586631877,-150.0,0.000346,2]
[313003318,1706586631886,-257.51268154,0.000346,4]
[313003319,1706586631898,-228.8711322,0.000346,4]
[313003320,1706586631907,-247.85850004,0.000346,2]
[313003321,1706586631916,-69.81569589,0.000346,4]
[313003322,1706586631928,-311.03721613,0.000346,4]
[313003323,1706586631938,-433.86655202,0.000346,4]
[313003324,1706586631948,-5.27784869,0.0003583,2]
[313003325,1706586631968,-1340.30625131,0.0003583,2]
[313003326,1706586631979,-248.74897753,0.0003593,4]
[313003327,1706586631988,-2893.90691208,0.0003593,2]
[313003328,1706586632000,-6670.83308792,0.0003593,2]
[313003329,1706586632010,-164.94608682,0.00036,2]
[313003330,1706586632019,-155.45,0.000361,3]
[313003331,1706586632030,-155.45,0.000361,3]
[313003332,1706586632041,-155.45,0.000361,3]
[313003334,1706586632050,-155.45,0.000361,3]
[313003336,1706586632059,-155.45,0.000361,3]
[313003338,1706586632068,-155.45,0.000361,3]
[313003340,1706586632077,-155.45,0.000361,3]
[313003341,1706586632087,-155.45,0.000361,3]
[313003343,1706586632096,-504.58798507,0.00036334,2]
[313003345,1706586632106,-305.88348735,0.00036334,4]
[313003346,1706586632115,-270.46058026,0.00036334,4]
[313003347,1706586632125,-164.94608673,0.0003662,2]
[313003348,1706586632136,-164.94608673,0.00037241,2]
[313003349,1706586632146,-155.0,0.0003786,2]
[313003350,1706586632155,-164.94608673,0.00037861,2]
[313003351,1706586632165,-235.19487127,0.00038352,4]
[313003352,1706586632176,-164.94608673,0.00038482,2]
[313003353,1706586632187,-282.70130916,0.0003898,2]
[313003354,1706586632198,-1074.21,0.00039,2]
[313003355,1706586632207,-164.94608673,0.00039102,2]
[313003356,1706586632217,-1432.18317414,0.00039159,2]
[313003357,1706586632226,-397.15796094,0.0003916,4]
[313003358,1706586632236,-164.94608673,0.00039723,2]
[313003359,1706586632246,-157.64331235,0.00039967,4]
[313003360,1706586632256,-247.42374992,0.00039967,4]
[313003361,1706586632266,-155.41068211,0.00039967,4]
[313003362,1706586632276,-187.41192795,0.00039967,4]
[313003363,1706586632286,-222.17925689,0.0004,2]
[313003364,1706586632296,-155.0,0.0004,2]
[313003365,1706586632305,-4041.69149787,0.0004,30]
[313003366,1706586632315,-2275.63385097,0.00040265,4]
[313003367,1706586632324,-713.38117008,0.00040265,30]
[313003368,1706586632334,-570.51160774,0.00040266,4]
[313003369,1706586632343,-15645.94692303,0.00040268,4]
[313003370,1706586632352,-164.94608673,0.00040343,2]
[313003371,1706586632362,-171.81003933,0.00040371,4]
[313003372,1706586632371,-489.299569,0.00040371,4]
[313003373,1706586632380,-162.86201114,0.00040371,4]
[313003374,1706586632390,-416.93071798,0.00040371,4]
[313003375,1706586632399,-310.43453824,0.00040371,2]
[313003376,1706586632408,-419.05803649,0.00040371,4]
[313003377,1706586632417,-310.43,0.00040371,2]
[313003378,1706586632431,-439.19523994,0.00040371,4]
[313003379,1706586632441,-180.59186097,0.00040371,2]
[313003380,1706586632451,-222.84629183,0.00040372,2]
[313003381,1706586632460,-222.84,0.00040372,2]
[313003382,1706586632470,-3072.96174041,0.00040373,19]
[313003383,1706586632482,-556.57370326,0.00040373,19]
[313003384,1706586632491,-272.58707556,0.00040373,2]
[313003385,1706586632503,-227.40292444,0.00040373,2]
[313003386,1706586632513,-362.18838088,0.00040373,15]
[313003387,1706586632525,-1026.8579553,0.00040373,15]
[313003388,1706586632536,-791.24822385,0.00040373,15]
[313003389,1706586632547,-369.47919421,0.00040373,15]
[313003390,1706586632557,-149.31922253,0.00040373,15]
[313003391,1706586632572,-551.86855989,0.00040373,15]
[313003392,1706586632581,-6505.75024047,0.00040373,19]
[313003393,1706586632592,-3582.01077552,0.00040373,19]
[313003394,1706586632601,-866.12489616,0.00040373,2]
[313003395,1706586632612,-307.51494231,0.00040373,2]
[313003396,1706586632624,-356.47298306,0.00040373,2]
[313003397,1706586632635,-500.0,0.00040373,2]
[313003398,1706586632646,-4168.71995178,0.00040373,2]
[313003399,1706586632656,-1426.73096217,0.00040373,2]
[313003400,1706586632671,-2439.16626452,0.00040373,2]
[313003401,1706586632682,-155.45,0.000407,4]
[313003402,1706586632691,-155.45,0.000407,4]
[313003403,1706586632701,-155.45,0.000407,4]
[313003404,1706586632710,-155.45,0.000407,4]
[313003405,1706586632719,-155.45,0.000407,4]
[313003406,1706586632728,-155.45,0.000407,4]
[313003407,1706586632738,-155.45,0.000407,4]
[313003408,1706586632747,-155.45,0.000407,4]
[313003409,1706586632755,-64.32489212,0.000407,4]
[313003410,1706586632766,-456.31690773,0.000407,4]
[313003411,1706586632790,-722.94820015,0.000407,4]
[313003412,1706586632799,-164.94608673,0.00040964,2]
[313003413,1706586632808,-164.94608673,0.00041584,2]
[313003414,1706586632818,-250.0,0.00041641,2]
[313003415,1706586632827,-200.0,0.0004166,2]
[313003416,1706586632836,-250.0,0.00041729,111]
[313003417,1706586632846,-193.76,0.00041853,2]
[313003418,1706586632855,-156.794347,0.00041992,30]
[313003419,1706586632864,-500.0,0.00042,7]
[313003420,1706586632873,-500.0,0.00042,7]
[313003421,1706586632882,-500.0,0.00042,7]
[313003422,1706586632891,-166.7,0.00042054,2]
[313003423,1706586632901,-150.0,0.00042131,2]
[313003424,1706586632910,-264.6,0.00042148,2]
[313003425,1706586632919,-164.94608673,0.00042205,2]
[313003426,1706586632930,-150.0,0.00042442,2]
[313003427,1706586632939,-181.12,0.00042783,120]
[313003428,1706586632948,-164.94608673,0.00042825,2]
[313003429,1706586632957,-500.0,0.00043,7]
[313003430,1706586632966,-555.69,0.00043048,2]
[313003431,1706586632975,-167.17,0.0004306,2]
[313003432,1706586632984,-150.0,0.00043145,2]
[313003433,1706586632994,-200.0,0.00043216,2]
[313003434,1706586633004,-150.0,0.00043256,2]
[313003435,1706586633013,-2000.0,0.00043312,120]
[313003436,1706586633022,-164.94608673,0.00043446,2]
[313003437,1706586633031,-250.0,0.00043627,2]
[313003438,1706586633040,-607.0,0.0004389,2]
[313003439,1706586633049,-193.76,0.00043945,2]
[313003440,1706586633058,-8440.1,0.00043954,2]
[313003441,1706586633067,-248.69,0.00043979,2]
[313003442,1706586633077,-178.16,0.00043987,10]
[313003443,1706586633086,-890.81,0.00043987,10]
[313003444,1706586633096,-2452.87186069,0.00043997,2]
[313003469,1706586637782,-500.0,0.000346,2]
[313003471,1706586637791,-282.70130916,0.00038999,2]
[313003473,1706586637800,-5437.86813931,0.00043997,2]
[313003475,1706586637809,-800.0,0.00044,2]
[313003477,1706586637819,-164.94608673,0.00044066,2]
[313003479,1706586637828,-350.54,0.00044092,15]
[313003481,1706586637838,-251.7794,0.00044101,2]
[313003483,1706586637847,-162.50075598,0.00044232,30]
[313003485,1706586637856,-882.94,0.00044232,120]
[313003487,1706586637866,-532.31,0.00044259,2]
[313003489,1706586637875,-532.31,0.0004438,2]
[313003490,1706586637884,-150.0,0.00044382,2]